bitfinex/quotes_BTCUSD_20241107
["timestamp","ask_amount","ask_price","bid_price","bid_amount"]
[1731015025363,0.18392602,76258.0,76245.0,0.19645979]
[1731015026547,0.18392602,76258.0,76241.0,0.001484]
[1731015026548,0.18392602,76258.0,76246.0,0.19645979]
[1731015026750,0.17024102,76258.0,76246.0,0.19645979]
[1731015026952,0.18233791,76258.0,76246.0,0.19645979]
[1731015028370,0.54732788,76258.0,76246.0,0.19645979]
[1731015028741,0.53523099,76258.0,76246.0,0.19645979]
[1731015029170,0.6012154,76258.0,76246.0,0.19645979]
[1731015030831,0.53523099,76258.0,76246.0,0.19645979]
[1731015031282,0.015,76247.0,76246.0,0.19645979]
[1731015031500,0.51223099,76247.0,76246.0,0.19645979]
[1731015031940,0.005,76245.0,76241.0,0.001484]
[1731015032162,0.15524102,76244.0,76241.0,0.001484]
[1731015033286,0.15524102,76244.0,76238.0,0.04194366]
[1731015033287,0.15524102,76244.0,76238.0,0.02342766]
[1731015033545,0.15524102,76244.0,76227.0,0.001484]
[1731015033775,0.023,76242.0,76236.0,0.04250495]
[1731015034013,0.023,76240.0,76236.0,0.000834]
[1731015034248,0.13224102,76239.0,76236.0,0.000834]
[1731015035395,0.023,76238.0,76236.0,0.000834]
[1731015035613,0.15524102,76237.0,76236.0,0.000834]
[1731015039098,0.36498997,76241.0,76236.0,0.000834]
[1731015039333,0.13224102,76240.0,76236.0,0.000834]
[1731015040007,0.36498997,76241.0,76236.0,0.000834]
[1731015042112,0.13224102,76240.0,76236.0,0.000834]
[1731015042348,0.023,76239.0,76236.0,0.000834]
[1731015042565,0.13224102,76238.0,76236.0,0.000834]
[1731015062472,0.03887003,76237.0,76236.0,0.000834]
[1731015062696,0.17111105,76237.0,76236.0,0.000834]
[1731015064398,0.03887003,76239.0,76236.0,0.000834]
[1731015064601,0.03887003,76239.0,76238.0,0.1]
[1731015064814,0.05997705,76241.0,76238.0,0.1]
[1731015064815,0.03887003,76240.0,76238.0,0.1]
[1731015065663,0.04054203,76241.0,76238.0,0.1]
[1731015066266,0.04079581,76241.0,76238.0,0.1]
[1731015066552,0.001672,76241.0,76238.0,0.1]
[1731015066740,0.001672,76241.0,76240.0,0.102]
[1731015066961,0.03912381,76248.0,76245.0,0.002]
[1731015067174,0.07824763,76253.0,76247.0,0.1]
[1731015067175,0.03912381,76253.0,76247.0,0.1]
[1731015067385,0.03912381,76255.0,76247.0,0.1]
[1731015067593,0.03912381,76255.0,76248.0,0.01226177]
[1731015067870,0.17136483,76254.0,76249.0,0.01226177]
[1731015068120,0.17136483,76254.0,76247.0,0.04327254]
[1731015068340,0.03912381,76249.0,76236.0,0.100834]
[1731015068579,0.13224102,76248.0,76244.0,0.1]
[1731015068796,0.17136483,76248.0,76244.0,0.1]
[1731015069017,0.023,76247.0,76236.0,0.000834]
[1731015069262,0.13224102,76246.0,76236.0,0.04350512]
[1731015069505,0.17136483,76246.0,76236.0,0.000834]
[1731015070305,0.06212381,76245.0,76236.0,0.000834]
[1731015070511,0.13224102,76244.0,76236.0,0.000834]
[1731015070688,0.023,76243.0,76236.0,0.000834]
[1731015070909,0.023,76241.0,76236.0,0.000834]
[1731015071139,0.13224102,76240.0,76236.0,0.000834]
[1731015071366,0.023,76239.0,76236.0,0.000834]
[1731015071655,0.13224102,76238.0,76236.0,0.000834]
[1731015071878,0.13224102,76237.0,76236.0,0.000834]
[1731015072096,0.52523099,76237.0,76236.0,0.000834]
[1731015072325,0.52523099,76237.0,76231.0,0.0004]
[1731015072326,0.028,76232.0,76231.0,0.0004]
[1731015072533,0.3045595,76232.0,76231.0,0.0004]
[1731015072739,0.34527377,76232.0,76231.0,0.0004]
[1731015072948,0.3807595,76232.0,76231.0,0.0004]
[1731015073168,0.42147319,76232.0,76231.0,0.0004]
[1731015073398,0.3807595,76232.0,76231.0,0.0004]
[1731015074289,0.43419192,76232.0,76231.0,0.0004]
[1731015075165,0.48029192,76232.0,76231.0,0.0004]
[1731015075850,0.84528189,76232.0,76231.0,0.0004]
[1731015076699,0.89179191,76232.0,76231.0,0.0004]
[1731015077108,0.71798189,76232.0,76231.0,0.0004]
[1731015077332,0.79606442,76232.0,76231.0,0.0004]
[1731015078062,0.57879247,76232.0,76231.0,0.0004]
[1731015078299,0.55927453,76232.0,76231.0,0.0004]
[1731015078532,0.52023099,76232.0,76231.0,0.0004]
[1731015079884,0.52023099,76232.0,76231.0,0.001234]
[1731015081685,0.15524102,76232.0,76231.0,0.001234]
[1731015094327,0.40192955,76232.0,76231.0,0.001234]
[1731015094532,0.30432814,76232.0,76231.0,0.001234]
[1731015097233,0.38237158,76232.0,76231.0,0.001234]
[1731015098281,0.38232406,76232.0,76231.0,0.001234]
[1731015099507,0.74731403,76232.0,76231.0,0.001234]
[1731015102574,0.75953587,76232.0,76231.0,0.001234]
[1731015102945,0.75953362,76232.0,76231.0,0.001234]
[1731015103300,0.005,76218.0,76214.0,0.000834]
[1731015103523,0.42700242,76217.0,76214.0,0.000834]
[1731015103723,0.023,76215.0,76214.0,0.000834]
[1731015104103,0.023,76215.0,76207.0,0.09769379]
[1731015104305,0.023,76216.0,76208.0,0.01049399]
[1731015104481,0.14445331,76215.0,76207.0,0.09769379]
[1731015104681,0.01221229,76214.0,76208.0,0.0489]
[1731015104894,0.36498997,76217.0,76208.0,0.0489]
[1731015104895,0.14445331,76213.0,76209.0,0.0801]
[1731015105213,0.13224102,76213.0,76209.0,0.0801]
[1731015106326,0.36498997,76217.0,76209.0,0.0801]
[1731015106524,0.13224102,76216.0,76209.0,0.0801]
[1731015117302,0.13390902,76216.0,76209.0,0.0801]
[1731015117510,0.001668,76216.0,76209.0,0.1801]
[1731015117712,0.001668,76216.0,76209.0,0.18272415]
[1731015117847,0.001668,76216.0,76211.0,0.002]
[1731015118197,0.001668,76216.0,76209.0,0.1801]
[1731015118439,0.001668,76216.0,76211.0,0.00262402]
[1731015118873,0.001668,76216.0,76213.0,0.1]
[1731015119089,0.36498997,76224.0,76215.0,0.0827]
[1731015119319,0.19645979,76221.0,76215.0,0.1827]
[1731015119536,0.36498997,76224.0,76215.0,0.1827]
[1731015119774,0.36498997,76224.0,76216.0,0.1]
[1731015119975,0.32870081,76223.0,76216.0,0.1]
[1731015120199,0.13224102,76223.0,76216.0,0.1]
[1731015121110,0.13224102,76223.0,76215.0,0.1827]
[1731015122864,0.13224102,76223.0,76215.0,0.23488598]
[1731015123108,0.13224102,76223.0,76216.0,0.1]
[1731015125369,0.13224102,76223.0,76215.0,0.05218598]
[1731015125574,0.13224102,76223.0,76207.0,0.082434]
[1731015125575,0.06209389,76222.0,76207.0,0.082434]
[1731015125804,0.06209389,76220.0,76208.0,0.19645979]
[1731015126005,0.06209389,76220.0,76209.0,0.00262416]
[1731015126006,0.13224102,76219.0,76209.0,0.00262416]
[1731015126231,0.03909389,76221.0,76209.0,0.00262416]
[1731015126390,0.03909389,76222.0,76212.0,0.0828]
[1731015126602,0.03909389,76222.0,76213.0,0.03197647]
[1731015126859,0.03909389,76223.0,76214.0,0.1326]
[1731015126999,0.03909389,76226.0,76215.0,0.10262389]
[1731015127204,0.03909389,76226.0,76220.0,0.002]
[1731015127429,0.40408386,76230.0,76215.0,0.10262389]
[1731015127629,0.19645979,76228.0,76215.0,0.10262389]
[1731015127857,0.32870081,76228.0,76215.0,0.1]
[1731015128505,0.13224102,76228.0,76218.0,0.1]
[1731015128915,0.36498997,76230.0,76220.0,0.1]
[1731015129161,0.001668,76223.0,76221.0,0.00262366]
[1731015129368,0.001668,76223.0,76222.0,0.2254]
[1731015132112,0.001668,76223.0,76221.0,0.05200515]
[1731015132337,0.01220186,76222.0,76221.0,0.05200515]
[1731015132475,0.01220186,76222.0,76216.0,0.1782]
[1731015132684,0.01220186,76221.0,76216.0,0.1782]
[1731015132885,0.01220186,76220.0,76216.0,0.1782]
[1731015133090,0.001668,76223.0,76216.0,0.1782]
[1731015133091,0.01220186,76222.0,76216.0,0.1782]
[1731015133314,0.001668,76223.0,76216.0,0.1782]
[1731015133315,0.01220186,76221.0,76216.0,0.1782]
[1731015133525,0.001668,76223.0,76216.0,0.1782]
[1731015134098,0.13390902,76223.0,76215.0,0.05275133]
[1731015134309,0.01220788,76222.0,76215.0,0.05275133]
[1731015134527,0.13390902,76223.0,76215.0,0.05275133]
[1731015134729,0.01221138,76222.0,76215.0,0.05275133]
[1731015134970,0.1444524,76221.0,76215.0,0.05275133]
[1731015135175,0.01221138,76220.0,76215.0,0.05275133]
[1731015135393,0.1444524,76219.0,76215.0,0.05275133]
[1731015135574,0.03521138,76218.0,76215.0,0.05275133]
[1731015135822,0.1444524,76217.0,76215.0,0.05275133]
[1731015136091,0.01221138,76216.0,76215.0,0.05275133]
[1731015136319,0.1444524,76216.0,76215.0,0.05275133]
[1731015138664,0.16399257,76216.0,76215.0,0.05275133]
[1731015139095,0.16399378,76216.0,76215.0,0.05275133]
[1731015140398,0.16399511,76216.0,76215.0,0.05275133]
[1731015141101,0.16566311,76216.0,76215.0,0.05275133]
[1731015143261,0.16566311,76216.0,76206.0,0.001484]
[1731015143262,0.24086311,76216.0,76206.0,0.001484]
[1731015143496,0.023,76208.0,76206.0,0.001484]
[1731015143763,0.15524102,76208.0,76206.0,0.001484]
[1731015144015,0.18700696,76208.0,76206.0,0.001484]
[1731015145408,0.18700696,76208.0,76207.0,0.05500818]
[1731015145643,0.16745869,76208.0,76207.0,0.05500818]
[1731015145879,0.18700696,76208.0,76207.0,0.05500818]
[1731015146118,0.16745869,76208.0,76207.0,0.05500818]
[1731015147271,0.18700696,76208.0,76207.0,0.05500818]
[1731015147554,0.16745869,76208.0,76207.0,0.05500818]
[1731015149244,0.16744299,76208.0,76207.0,0.05500818]
[1731015153385,0.15524102,76208.0,76207.0,0.05500818]
[1731015153592,0.03366661,76277.0,76208.0,0.1463]
[1731015153593,0.001668,76216.0,76208.0,0.1463]
[1731015153795,0.01952779,76237.0,76215.0,0.2279]
[1731015154003,0.01952779,76242.0,76222.0,0.1]
[1731015154213,0.001668,76236.0,76222.0,0.1]
[1731015154637,0.001668,76236.0,76222.0,0.102]
[1731015155040,0.001668,76236.0,76216.0,0.117]
[1731015155255,0.001668,76236.0,76217.0,0.0817]
[1731015155459,0.001668,76236.0,76220.0,0.002]
[1731015155664,0.001668,76236.0,76217.0,0.0817]
[1731015157945,0.001668,76236.0,76221.0,0.002]
[1731015158149,0.001668,76236.0,76218.0,0.12780248]
[1731015160439,0.19645979,76222.0,76218.0,0.12780248]
[1731015160640,0.13224102,76221.0,76205.0,0.0507]
[1731015160844,0.13224102,76221.0,76210.0,0.19645979]
[1731015161038,0.19645979,76220.0,76205.0,0.0507]
[1731015161263,0.13224102,76219.0,76208.0,0.19645979]
[1731015161468,0.13224102,76219.0,76216.0,0.19645979]
[1731015161646,0.36498997,76233.0,76217.0,0.04964798]
[1731015161970,0.13224102,76222.0,76210.0,0.002]
[1731015162142,0.13224102,76222.0,76211.0,0.00262397]
[1731015162552,0.36498997,76233.0,76211.0,0.00262397]
[1731015162868,0.36498997,76233.0,76212.0,0.01222027]
[1731015163073,0.36498997,76233.0,76217.0,0.1]
[1731015163270,0.36498997,76233.0,76218.0,0.08962027]
[1731015163474,0.36498997,76233.0,76219.0,0.01222027]
[1731015163833,0.36498997,76233.0,76220.0,0.01222027]
[1731015164037,0.36498997,76233.0,76221.0,0.01222027]
[1731015164215,0.001668,76222.0,76219.0,0.11954783]
[1731015164413,0.001668,76222.0,76220.0,0.01221527]
[1731015164619,0.001668,76222.0,76221.0,0.01221527]
[1731015165704,0.001668,76222.0,76221.0,0.01483886]
[1731015166090,0.001668,76222.0,76221.0,0.01683886]
[1731015166361,0.001668,76222.0,76221.0,0.01483886]
[1731015166579,0.001668,76222.0,76221.0,0.01221527]
[1731015167859,0.13390902,76222.0,76214.0,0.01221527]
[1731015168073,0.13390902,76222.0,76210.0,0.01221527]
[1731015168074,0.13224102,76221.0,76210.0,0.01221527]
[1731015168284,0.13224102,76221.0,76209.0,0.19645979]
[1731015168482,0.13224102,76221.0,76210.0,0.01221527]
[1731015168686,0.13224102,76221.0,76209.0,0.19645979]
[1731015169102,0.13224102,76221.0,76210.0,0.1]
[1731015169947,0.19645979,76220.0,76206.0,0.15555076]
[1731015170167,0.32870081,76220.0,76209.0,0.1]
[1731015170591,0.13224102,76219.0,76209.0,0.1]
[1731015170810,0.13224102,76219.0,76206.0,0.001484]
[1731015171460,0.005,76213.0,76206.0,0.001484]
[1731015171695,0.13224102,76212.0,76206.0,0.001484]
[1731015172145,0.13224102,76212.0,76209.0,0.19645979]
[1731015172374,0.13224102,76212.0,76206.0,0.001484]
[1731015173306,0.44528997,76218.0,76206.0,0.001484]
[1731015173517,0.32870081,76217.0,76206.0,0.001484]
[1731015173943,0.40643349,76217.0,76206.0,0.001484]
[1731015174206,0.32870081,76217.0,76206.0,0.001484]
[1731015175234,0.13224102,76217.0,76206.0,0.001484]
[1731015175924,0.13224102,76217.0,76209.0,0.000834]
[1731015176137,0.19645979,76216.0,76209.0,0.000834]
[1731015176364,0.44528997,76218.0,76206.0,0.001484]
[1731015176365,0.0455,76214.0,76207.0,0.000268]
[1731015176589,0.13224102,76213.0,76207.0,0.000268]
[1731015176796,0.005,76210.0,76207.0,0.000268]
[1731015177001,0.13224102,76209.0,76207.0,0.000268]
[1731015187216,0.1272,76208.0,76207.0,0.000268]
[1731015187476,0.62943099,76208.0,76207.0,0.000268]
[1731015187723,1.02943099,76208.0,76207.0,0.000268]
[1731015189036,1.02943099,76208.0,76196.0,0.001484]
[1731015189037,0.005,76207.0,76196.0,0.001484]
[1731015189247,0.49723099,76206.0,76196.0,0.001484]
[1731015190777,0.4,76199.0,76196.0,0.001484]
[1731015191001,0.53224102,76199.0,76196.0,0.001484]
[1731015192964,0.60884102,76199.0,76196.0,0.001484]
[1731015193188,0.97383099,76199.0,76196.0,0.001484]
[1731015193405,0.97383099,76199.0,76191.0,0.05385062]
[1731015193406,0.005,76194.0,76191.0,0.0073997]
[1731015193653,0.005,76197.0,76193.0,0.19645979]
[1731015193866,0.13224102,76196.0,76185.0,0.19645979]
[1731015195607,0.13224102,76196.0,76183.0,0.001484]
[1731015195813,0.4,76186.0,76184.0,0.05221241]
[1731015196024,0.13224102,76185.0,76183.0,0.001484]
[1731015196242,0.13224102,76185.0,76183.0,0.000984]
[1731015197708,0.4,76184.0,76183.0,0.000984]
[1731015197912,0.53224102,76184.0,76183.0,0.000984]
[1731015200261,0.53224102,76184.0,76183.0,0.05422884]
[1731015200478,0.61444102,76184.0,76183.0,0.05422884]
[1731015200727,0.61444102,76184.0,76183.0,0.000984]
[1731015202923,0.53224102,76184.0,76183.0,0.000984]
[1731015204272,0.53224102,76184.0,76183.0,0.000884]
[1731015223528,0.53390902,76184.0,76183.0,0.000884]
[1731015223966,0.89889899,76184.0,76183.0,0.000884]
[1731015227842,0.005,76175.0,76156.0,0.0465]
[1731015228189,0.005,76175.0,76159.0,0.21294379]
[1731015228190,0.1246,76173.0,76159.0,0.21294379]
[1731015228314,0.0765,76173.0,76159.0,0.21294379]
[1731015228763,0.4,76172.0,76159.0,0.21294379]
[1731015229389,0.53224102,76172.0,76159.0,0.21294379]
[1731015230000,0.53224102,76172.0,76160.0,0.1]
[1731015230206,0.53224102,76172.0,76165.0,0.0786]
[1731015230635,0.4,76172.0,76169.0,0.02137712]
[1731015230849,0.4,76172.0,76171.0,0.06877712]
[1731015231763,0.4,76174.0,76171.0,0.0474]
[1731015232809,0.4,76175.0,76171.0,0.0474]
[1731015234313,0.53224102,76175.0,76171.0,0.0004]
[1731015234730,0.4,76172.0,76171.0,0.0004]
[1731015235487,0.4,76172.0,76171.0,0.001234]
[1731015235695,0.61074102,76172.0,76171.0,0.001234]
[1731015239854,0.98073099,76172.0,76171.0,0.001234]
[1731015242074,0.97573099,76172.0,76171.0,0.001234]
[1731015249619,0.98073099,76172.0,76171.0,0.001234]
[1731015249820,1.12479423,76172.0,76171.0,0.001234]
[1731015250025,1.22236087,76172.0,76171.0,0.001234]
[1731015250624,1.24534828,76172.0,76171.0,0.001234]
[1731015251322,1.24534828,76172.0,76152.0,0.19645979]
[1731015251323,0.1308,76154.0,76153.0,0.19645979]
[1731015251600,0.49578997,76154.0,76153.0,0.19645979]
[1731015251824,0.49578997,76154.0,76145.0,0.015]
[1731015252278,0.49578997,76154.0,76145.0,0.01261779]
[1731015252728,0.4,76149.0,76145.0,0.01261779]
[1731015253641,0.13224102,76148.0,76145.0,0.01261779]
[1731015253843,0.4,76146.0,76145.0,0.01261779]
[1731015253995,0.53224102,76146.0,76145.0,0.01261779]
[1731015256649,0.13224102,76146.0,76145.0,0.01261779]
[1731015257070,0.4,76147.0,76145.0,0.01261779]
[1731015257294,0.13224102,76146.0,76145.0,0.01261779]
[1731015257716,0.53224102,76146.0,76145.0,0.01261779]
[1731015258271,0.4,76146.0,76145.0,0.01261779]
[1731015258690,0.4,76147.0,76145.0,0.01261779]
[1731015258905,0.53224102,76147.0,76145.0,0.01261779]
[1731015259110,0.32870081,76146.0,76145.0,0.01261779]
[1731015259313,0.13224102,76146.0,76145.0,0.01261779]
[1731015259482,0.13224102,76146.0,76145.0,0.01345179]
[1731015259691,0.53224102,76146.0,76145.0,0.01345179]
[1731015262585,0.89723099,76146.0,76145.0,0.01345179]
[1731015264712,0.89727099,76146.0,76145.0,0.01345179]
[1731015266608,0.89727099,76146.0,76138.0,0.001486]
[1731015266609,0.005,76143.0,76138.0,0.001486]
[1731015266852,0.13224102,76142.0,76138.0,0.001486]
[1731015268389,0.1294,76145.0,76138.0,0.001486]
[1731015268390,0.13724102,76141.0,76138.0,0.001486]
[1731015268741,0.4,76139.0,76138.0,0.001486]
[1731015268947,0.53224102,76139.0,76138.0,0.001486]
[1731015271127,0.53224102,76139.0,76127.0,0.1]
[1731015271349,0.49723099,76138.0,76127.0,0.1]
[1731015272388,0.49723099,76138.0,76121.0,0.001486]
[1731015272526,0.49723099,76138.0,76123.0,0.1]
[1731015273775,0.4,76124.0,76123.0,0.1]
[1731015274174,0.4,76124.0,76121.0,0.001486]
[1731015275487,0.40004,76124.0,76121.0,0.001486]
[1731015277812,4e-05,76124.0,76121.0,0.001486]
[1731015279921,4e-05,76124.0,76121.0,0.00411312]
[1731015280667,0.0814,76095.0,76088.0,0.19645979]
[1731015280882,0.0814,76095.0,76080.0,0.27461037]
[1731015280883,0.0814,76095.0,76068.0,0.001486]
[1731015281171,0.005,76105.0,76075.0,0.005]
[1731015281401,0.005,76106.0,76093.0,0.078]
[1731015281618,0.005,76115.0,76095.0,0.00262794]
[1731015281834,0.4,76116.0,76095.0,0.00262794]
[1731015282081,0.005,76115.0,76095.0,0.00262794]
[1731015282312,0.005,76115.0,76094.0,0.011486]
[1731015282534,0.005,76115.0,76094.0,0.013486]
[1731015282808,0.005,76115.0,76094.0,0.16667012]
[1731015282809,0.4,76108.0,76094.0,0.16667012]
[1731015283055,0.4,76108.0,76094.0,0.113486]
[1731015283316,0.4,76108.0,76094.0,0.103486]
[1731015283532,0.4,76108.0,76094.0,0.101486]
[1731015284222,0.4,76108.0,76094.0,0.001486]
[1731015285126,0.4,76108.0,76101.0,0.1]
[1731015285574,0.4,76108.0,76097.0,0.002]
[1731015285794,4e-05,76108.0,76102.0,0.1]
[1731015286741,4e-05,76108.0,76101.0,0.00979199]
[1731015286965,4e-05,76108.0,76095.0,0.00979199]
[1731015287200,4e-05,76108.0,76094.0,0.111486]
[1731015287201,4e-05,76108.0,76098.0,0.1]
[1731015287461,4e-05,76108.0,76101.0,0.002]
[1731015287687,0.40004,76108.0,76100.0,0.00979159]
[1731015287964,0.40004,76108.0,76107.0,0.1]
[1731015288822,4e-05,76108.0,76107.0,0.1]
[1731015289028,4e-05,76108.0,76105.0,0.0492]
[1731015289980,4e-05,76108.0,76098.0,0.1]
[1731015290633,0.4,76107.0,76098.0,0.102]
[1731015291035,0.4,76107.0,76101.0,0.002]
[1731015291632,0.4,76107.0,76098.0,0.102]
[1731015291833,4e-05,76108.0,76098.0,0.102]
[1731015292261,4e-05,76108.0,76099.0,0.002]
[1731015292643,4e-05,76108.0,76100.0,0.00262766]
[1731015293233,0.005,76083.0,76069.0,0.25510295]
[1731015293437,0.13224102,76082.0,76077.0,0.19645979]
[1731015294090,0.13224102,76082.0,76070.0,0.00262886]
[1731015294307,0.13224102,76082.0,76072.0,0.09042413]
[1731015294447,0.13224102,76082.0,76072.0,0.05369989]
[1731015294653,0.13224102,76082.0,76072.0,0.0026288]
[1731015294876,0.13224102,76082.0,76069.0,0.19645979]
[1731015295095,0.13224102,76082.0,76073.0,0.0026288]
[1731015295296,0.13228102,76082.0,76073.0,0.0026288]
[1731015295994,0.13228102,76082.0,76070.0,0.1]
[1731015296281,0.13228102,76082.0,76071.0,0.00302876]
[1731015296700,0.4,76080.0,76071.0,0.00302876]
[1731015296926,0.53224102,76080.0,76071.0,0.00502876]
[1731015297125,0.53224102,76080.0,76071.0,0.00302876]
[1731015297325,0.4,76080.0,76071.0,0.0004]
[1731015297474,0.4,76080.0,76074.0,0.002]
[1731015297635,4e-05,76082.0,76071.0,0.0024]
[1731015297838,4e-05,76082.0,76071.0,0.05476818]
[1731015298089,4e-05,76082.0,76071.0,0.0024]
[1731015300571,4e-05,76082.0,76074.0,0.002]
[1731015300785,4e-05,76082.0,76073.0,0.002]
[1731015300985,4e-05,76082.0,76071.0,0.0024]
[1731015301404,4e-05,76082.0,76071.0,0.05594222]
[1731015301610,4e-05,76082.0,76071.0,0.0004]
[1731015302412,4e-05,76082.0,76070.0,0.0854]
[1731015303048,4e-05,76082.0,76079.0,0.002]
[1731015303664,4e-05,76082.0,76076.0,0.002]
[1731015305021,4e-05,76082.0,76081.0,0.002]
[1731015305692,4e-05,76082.0,76079.0,0.002]
[1731015306363,4e-05,76082.0,76077.0,0.002]
[1731015306984,4e-05,76082.0,76078.0,0.002]
[1731015307418,4e-05,76082.0,76075.0,0.002]
[1731015307638,4e-05,76082.0,76074.0,0.002]
[1731015308497,4e-05,76082.0,76076.0,0.002]
[1731015308715,0.00014,76082.0,76076.0,0.002]
[1731015309160,0.00014,76082.0,76074.0,0.002]
[1731015309384,0.00014,76082.0,76070.0,0.13932926]
[1731015309586,0.00014,76082.0,76072.0,0.1]
[1731015311119,0.00014,76082.0,76073.0,0.002]
[1731015311557,0.13224102,76074.0,76070.0,0.05392926]
[1731015311763,0.40262769,76073.0,76071.0,0.19645979]
[1731015311973,0.13224102,76072.0,76070.0,0.05392926]
[1731015312189,0.13486871,76072.0,76070.0,0.05392926]
[1731015313733,0.4,76071.0,76070.0,0.05392926]
[1731015313945,0.53224102,76071.0,76070.0,0.05392926]
[1731015315818,1.01273099,76071.0,76070.0,0.03913056]
[1731015316027,1.01273099,76071.0,76070.0,0.000835]
[1731015316435,1.01277099,76071.0,76070.0,0.000835]
[1731015317283,0.64778102,76071.0,76070.0,0.000835]
[1731015318157,0.64778102,76071.0,76061.0,0.001486]
[1731015318158,0.0821,76062.0,76061.0,0.001486]
[1731015318367,0.30684102,76062.0,76061.0,0.001486]
[1731015318810,0.70684102,76062.0,76061.0,0.001486]
[1731015320230,0.69684102,76062.0,76061.0,0.001486]
[1731015320474,0.70184102,76062.0,76061.0,0.001486]
[1731015320944,0.66884102,76062.0,76061.0,0.001486]
[1731015321202,0.61978102,76062.0,76061.0,0.001486]
[1731015322421,0.53728102,76062.0,76061.0,0.001486]
[1731015326205,0.56528102,76062.0,76061.0,0.001486]
[1731015332087,0.45528102,76062.0,76061.0,0.001486]
[1731015332941,0.43228102,76062.0,76061.0,0.001486]
[1731015336665,0.43728102,76062.0,76061.0,0.001486]
[1731015337125,0.43228102,76062.0,76061.0,0.001486]
[1731015339601,0.58598102,76062.0,76061.0,0.001486]
[1731015342680,0.42728102,76062.0,76061.0,0.001486]
[1731015343138,0.42728102,76062.0,76061.0,0.00448488]
[1731015343370,0.42728102,76062.0,76061.0,0.00448458]
[1731015343612,0.42895102,76062.0,76061.0,0.00448458]
[1731015344024,0.42895102,76062.0,76061.0,0.001486]
[1731015344235,0.42395102,76062.0,76061.0,0.001486]
[1731015345532,0.42895102,76062.0,76061.0,0.001486]
[1731015346209,0.42395102,76062.0,76061.0,0.001486]
[1731015346428,0.42895102,76062.0,76061.0,0.001486]
[1731015348350,0.005,76060.0,76054.0,0.12995199]
[1731015348767,0.40171,76062.0,76055.0,0.00296355]
[1731015349177,0.40171,76062.0,76054.0,0.12995199]
[1731015349582,0.40171,76062.0,76055.0,0.00262941]
[1731015349779,0.40171,76062.0,76054.0,0.12995199]
[1731015349780,0.4,76061.0,76054.0,0.1125814]
[1731015349984,0.4,76061.0,76056.0,0.00296547]
[1731015350221,0.4,76061.0,76055.0,0.00296591]
[1731015350432,0.4,76061.0,76057.0,0.00296474]
[1731015350740,0.4,76061.0,76056.0,0.00296532]
[1731015350920,0.00171,76062.0,76058.0,0.00295949]
[1731015351235,0.00171,76062.0,76053.0,0.22571242]
[1731015351436,0.00171,76062.0,76059.0,0.00296593]
[1731015351642,0.40171,76062.0,76053.0,0.22571242]
[1731015351780,0.40171,76062.0,76060.0,0.00296534]
[1731015351978,0.40171,76062.0,76053.0,0.22571242]
[1731015352192,0.40171,76062.0,76053.0,0.22371242]
[1731015352394,0.40171,76062.0,76054.0,0.00297063]
[1731015352626,0.00171,76062.0,76054.0,0.00297063]
[1731015353817,0.4,76061.0,76054.0,0.00297063]
[1731015354805,0.00171,76062.0,76054.0,0.00297063]
[1731015355214,0.00171,76062.0,76056.0,0.002]
[1731015355408,0.00171,76062.0,76054.0,0.00297063]
[1731015355651,0.00171,76062.0,76057.0,0.00297243]
[1731015355849,0.00171,76062.0,76053.0,0.22571242]
[1731015356060,0.00171,76062.0,76058.0,0.00297273]
[1731015356277,0.00171,76062.0,76053.0,0.22571242]
[1731015356476,0.00171,76062.0,76059.0,0.00297215]
[1731015356626,0.00171,76062.0,76054.0,0.000835]
[1731015356845,0.00171,76062.0,76060.0,0.00297156]
[1731015357012,0.00171,76062.0,76054.0,0.000835]
[1731015357256,0.00171,76062.0,76061.0,0.00297142]
[1731015357455,0.00171,76062.0,76054.0,0.000835]
[1731015357866,0.00171,76062.0,76055.0,0.00297582]
[1731015359578,0.00171,76062.0,76056.0,0.00262921]
[1731015359779,0.00171,76062.0,76056.0,0.00560666]
[1731015361873,0.00171,76062.0,76056.0,0.00760666]
[1731015362121,0.00171,76062.0,76061.0,0.002]
[1731015362353,0.00171,76062.0,76057.0,0.002]
[1731015362558,0.00171,76062.0,76061.0,0.00296944]
[1731015362991,0.00171,76062.0,76061.0,0.00262909]
[1731015363861,0.00171,76062.0,76061.0,0.00560432]
[1731015364117,0.00171,76062.0,76061.0,0.00262909]
[1731015364361,0.00171,76062.0,76061.0,0.00560432]
[1731015364596,0.00171,76062.0,76061.0,0.00262909]
[1731015364845,0.00171,76062.0,76061.0,0.00560432]
[1731015366186,0.00171,76062.0,76061.0,0.00262909]
[1731015367791,0.00171,76062.0,76061.0,0.000834]
[1731015369539,0.00171,76062.0,76061.0,0.00381145]
[1731015369810,0.00171,76062.0,76061.0,0.000834]
[1731015371144,0.00171,76062.0,76061.0,0.00381189]
[1731015371347,0.00171,76062.0,76061.0,0.000834]
[1731015371572,0.00171,76062.0,76061.0,0.00381234]
[1731015371803,0.00171,76062.0,76061.0,0.000834]
[1731015372454,0.00171,76062.0,76061.0,0.04328029]
[1731015372676,0.00171,76062.0,76061.0,0.000834]
[1731015377429,0.00171,76062.0,76061.0,0.04296896]
[1731015377649,0.00171,76062.0,76061.0,0.000834]
[1731015379937,0.39671,76066.0,76061.0,0.00381096]
[1731015380199,0.39671,76066.0,76061.0,0.000834]
[1731015380390,0.01219611,76065.0,76061.0,0.000834]
[1731015380611,0.39671,76066.0,76061.0,0.000834]
[1731015380612,0.01219611,76064.0,76062.0,0.00297916]
[1731015380836,0.01219611,76063.0,76062.0,0.00297916]
[1731015381052,0.01219611,76063.0,76061.0,0.000834]
[1731015381272,0.01219611,76062.0,76061.0,0.000834]
[1731015383172,0.14443713,76062.0,76061.0,0.000834]
[1731015383377,0.19123713,76062.0,76061.0,0.000834]
[1731015383593,0.19123713,76062.0,76047.0,0.1]
[1731015383806,0.01548299,76061.0,76047.0,0.1]
[1731015384010,0.01219611,76060.0,76047.0,0.1]
[1731015384221,0.00328688,76061.0,76047.0,0.1]
[1731015384222,0.01219611,76059.0,76047.0,0.1]
[1731015384436,0.01219611,76058.0,76048.0,0.00288801]